Cogmind - Beta 10.2 @@@ ROGUE MODE // 2021.06.22 @ 19:33:38 Player: Sanctumkeeper Result: Destroyed by D-53 Grenadier with Mini Grenade Launcher Performance ------------- Evolutions (0) 0 Regions Visited (2) 400 Robots Destroyed (18) 90 Value Destroyed (288) 288 Prototype IDs (0) 0 Alien Tech Used (0) 0 Bonus (0) 0 TOTAL SCORE: 778 Bonus ------- None Cogmind --------- Core Integrity 0/250 Matter 164/300 Energy 48/100 System Corruption 0% Temperature Cool (0) Movement Walking (210) Ox3 Location -10/Mines Parts ------- > --- POWER (1) -------- (None) > --- PROPULSION (2) --- Aluminum Leg > --- UTILITY (2) ------ Large Storage Unit Large Storage Unit > --- WEAPON (2) ------- Light Assault Rifle Light Assault Rifle > --- INVENTORY (16) --- Light Ion Engine Improved Heat Sink Medium Storage Unit Large Storage Unit Light Armor Plating Light Armor Plating Light Armor Plating Light Armor Plating Grenade Launcher Grenade Launcher Mining Claw Peak State ------------ > --- POWER ------------ Light Ion Engine > --- PROPULSION ------- Light Treads Light Treads > --- UTILITY ---------- Improved Heat Sink Small Storage Unit > --- WEAPON ----------- Small Laser Light Assault Rifle > --- INVENTORY -------- Light Ion Engine Light Treads Aluminum Leg Aluminum Leg Grenade Launcher [Rating: 9] Favorites ----------- Power Light Ion Engine Engine Light Ion Engine Propulsion Light Treads Treads Light Treads Leg Aluminum Leg Utility Large Storage Unit Device Improved Heat Sink Storage Large Storage Unit Weapon Small Laser Energy Gun Small Laser Ballistic Gun Light Assault Rifle Launcher Grenade Launcher Slashing Weapon Mining Claw Build | -11 -10 -10 ------- Run | Scr Mat Min Slots Evolved . | . . . Power . | . . . Propulsion . | . . . Utility . | . . . Weapon . | . . . Parts Attached 27 | 6 9 12 Power 3 | 1 1 1 Engine 3 | 1 1 1 Core . | . . . Reactor . | . . . Propulsion 6 | 2 . 4 Treads 5 | 2 . 3 Leg 1 | . . 1 Wheel . | . . . Hover . | . . . Flight . | . . . Utility 5 | 1 4 . Device 1 | . 1 . Storage 4 | 1 3 . Processor . | . . . Hackware . | . . . Protection . | . . . Artifact . | . . . Weapon 13 | 2 4 7 Energy Gun 6 | 2 2 2 Energy Cannon . | . . . Ballistic Gun 4 | . 1 3 Ballistic Cannon . | . . . Launcher 2 | . 1 1 Special Weapon . | . . . Impact Weapon . | . . . Slashing Weapon 1 | . . 1 Piercing Weapon . | . . . Special Melee Weapon . | . . . Unidentified Prototypes . | . . . Parts Lost 13 | . 3 10 Power 3 | . 1 2 Propulsion 5 | . . 5 Utility . | . . . Weapon 5 | . 2 3 Highest Loss Streak 5 | . 1 5 Average Slot Usage (%) 94 | . 94 94 Engine 13 | . 14 13 Treads 27 | . 28 27 Storage 24 | . 22 28 Energy Gun 15 | . 18 9 Ballistic Gun 9 | . 9 10 Launcher 1 | . . 3 Naked Turns . | . . . Heaviest Build 39 | 11 37 39 Greatest Support 40 | 40 40 40 Greatest Overweight (x) 1 | . . 1 Average Overweight (x) . | . . . Largest Inventory Capacity 16 | 6 16 16 Average Capacity 11 | 5 10 16 Most Carried 16 | 4 16 16 Average Carried 9 | 2 7 14 Final Capacity 16 | 6 16 16 Final Carried 16 | 4 16 11 Class Distribution -------------------- 95% | Mutant 4% | Scavenger-Mutant Dominant Class ---------------- Mutant | -10/Materials Mutant | -10/Mines Resources | -11 -10 -10 ----------- Run | Scr Mat Min Matter Collected 530 | 158 213 159 Remotely . | . . . Salvage Created 626 | . 397 229 Parts 33 | . 18 15 Haulers Intercepted 2 | . 2 . Recyclers Shooed 2 | . 1 1 Parts Field Recycled . | . . . Retrieved Matter . | . . . Parts Self-Destructed . | . . . Prevented . | . . . Kills | -11 -10 -10 ------- Run | Scr Mat Min Combat Hostiles Destroyed 30 | . 8 22 Guns 13 | . 8 5 AOE 17 | . . 17 Classes Destroyed 6 | . 4 2 Worker 2 | . 1 1 Hauler 2 | . 2 . Recycler 1 | . . 1 Swarmer 8 | . 3 5 Grunt 5 | . 5 . Assembled 17 | . . 17 Best Kill Streak 17 | . 3 17 Combat Bots Only 16 | . 3 16 Max Kills in Single Turn 5 | . 2 5 Gunslinging 1 | . 1 . Exploded 5 | . . 5 Melee . | . . . Uniques/NPCs Destroyed . | . . . Combat | -11 -10 -10 -------- Run | Scr Mat Min Damage Taken 1484 | . 429 1055 Core 256 | . 93 163 Absorbed by Shields . | . . . Core Remaining (%) 100 | 100 . . Volleys Fired 67 | . 32 35 Largest 2 | . 2 2 Hottest 100 | . 100 60 Shots Fired 111 | . 62 49 Gun 88 | . 60 28 Cannon . | . . . Launcher 23 | . 2 21 Special . | . . . Kinetic 33 | . 18 15 Thermal 55 | . 42 13 Explosive 23 | . 2 21 Electromagnetic . | . . . Robot Hit Streak 10 | . 10 5 Robot Miss Streak 3 | . 3 2 Penetration Max . | . . . Secondary Targets 1 | . 1 . Max Gunslinging Chain 1 | . 1 . Shots Hit Robots 64 | . 39 25 Core Hits 80 | . 25 55 Critical Hits . | . . . Critical Kills . | . . . Critical Parts Destroyed . | . . . Melee Attacks 1 | . . 1 Impact . | . . . Slashing 1 | . . 1 Piercing . | . . . Sneak Attacks . | . . . Combat Hostiles . | . . . Follow-up Attacks . | . . . Damage Inflicted 1850 | . 433 1417 Guns 561 | . 398 163 Cannons . | . . . Explosions 1261 | . 32 1229 Melee 25 | . . 25 Ramming 3 | . 3 . Kinetic 153 | . 99 54 Thermal 408 | . 299 109 Explosive 1261 | . 32 1229 Electromagnetic . | . . . Impact . | . . . Slashing 25 | . . 25 Piercing . | . . . Highest Corruption . | . . . Average Corruption . | . . . Corruption Purged . | . . . Overload Shots . | . . . Overflow Damage 70 | . . 70 Projectiles . | . . . Explosions 70 | . . 70 Melee . | . . . Knockbacks 1 | . 1 . Impact 1 | . 1 . Kinetic . | . . . Secondary . | . . . Self-Inflicted Damage 34 | . . 34 Shots 2 | . . 2 Rammed 1 | . 1 . Targets Rammed 1 | . 1 . Kicked . | . . . Crushed . | . . . Highest Temperature 322 | . 322 55 Average Temperature 70 | . 92 20 Received Heat Transfer 254 | . 114 140 Siege Activations . | . . . Robots Corrupted . | . . . Combat Hostiles . | . . . Parts Fried . | . . . Impact Corruptions . | . . . Robots Melted . | . . . Combat Hostiles . | . . . Parts Melted 1 | . 1 . Heat Transferred 1008 | . 758 250 Parts Sabotaged . | . . . Parts Stolen . | . . . Parts Stripped . | . . . Power Chain Reactions . | . . . Missiles Intercepted . | . . . Alert | -11 -10 -10 ------- Run | Scr Mat Min Peak Influence 161 | . 161 105 Initial . | . . . Average 59 | . 57 71 Maximum Alert Level . | . . . Low Security (%) 100 | 100 100 100 Level 1 . | . . . Level 2 . | . . . Level 3 . | . . . Level 4 . | . . . Level 5 . | . . . High Security . | . . . Max Security . | . . . Squads Dispatched 1 | . 1 . Investigation . | . . . Extermination . | . . . Reinforcement 1 | . 1 . Assault . | . . . Garrison . | . . . Intercept . | . . . Construction Impeded . | . . . Haulers Reinforced . | . . . Stealth | -11 -10 -10 --------- Run | Scr Mat Min Distress Signals . | . . . Communications Jammed . | . . . Distress Signals . | . . . Times Spotted 45 | . 18 27 Peak Tracking Total 8 | . 3 8 Tactical Retreats 3 | . 2 1 Traps | -11 -10 -10 ------- Run | Scr Mat Min Traps Triggered . | . . . Indirectly . | . . . Trap Hack Attempts . | . . . Triggered . | . . . Disarmed . | . . . Reprogrammed . | . . . Reused . | . . . Traps Extracted . | . . . Installed . | . . . Triggered . | . . . Machines | -11 -10 -10 ---------- Run | Scr Mat Min Machines Disabled . | . . . Max in Single Turn . | . . . Machines Sabotaged . | . . . Garrisons Compromised . | . . . Overloaded Fab Kills . | . . . Fab Network Shutdowns . | . . . Hacking | -11 -10 -10 --------- Run | Scr Mat Min Machines Accessed 5 | . 5 . Terminals 5 | . 5 . Fabricators . | . . . Repair Stations . | . . . Recycling Units . | . . . Scanalyzers . | . . . Garrison Access . | . . . Total Hacks 11 | . 11 . Successful 5 | . 5 . Failed 6 | . 6 . Catastrophic 1 | . 1 . Database Lockouts . | . . . Manual 11 | . 11 . Terminals 11 | . 11 . Fabricators . | . . . Repair Stations . | . . . Recycling Units . | . . . Scanalyzers . | . . . Garrison Access . | . . . Terminal Hacks . | . . . Fabricator Hacks . | . . . Repair Station Hacks . | . . . Recycling Unit Hacks . | . . . Scanalyzer . | . . . Garrison Access Hacks . | . . . Unauthorized Hacks 5 | . 5 . Terminals 5 | . 5 . Track 1 | . 1 . Assimilate 1 | . 1 . Botnet 2 | . 2 . Operators 1 | . 1 . Fabricators . | . . . Repair Stations . | . . . Recycling Units . | . . . Scanalyzers . | . . . Garrison Access . | . . . Data Cores Recovered . | . . . Used . | . . . Hacking Detections 5 | . 5 . Full Trace Events . | . . . Feedback Events . | . . . Feedback Blocked . | . . . Robot Schematics Acquired . | . . . Robots Built . | . . . Matter . | . . . Time . | . . . Total Robot Build Rating . | . . . Part Schematics Acquired . | . . . Parts Built . | . . . Matter . | . . . Time . | . . . Total Part Build Rating . | . . . Parts Repaired . | . . . Time . | . . . Parts Recycled . | . . . Recycled Matter . | . . . Retrieved Matter . | . . . Retrieved Components . | . . . Parts Scanalyzed . | . . . Part Schematics Acquired . | . . . Parts Damaged . | . . . Bothacking | -11 -10 -10 ------------ Run | Scr Mat Min Used RIF Installer . | . . . Robots Hacked . | . . . Non-combat . | . . . Combat . | . . . Robot Hacks Applied . | . . . Relay Couplers Released . | . . . Robots Rewired . | . . . Allies Hacked . | . . . Hacks Repelled . | . . . Allies | -11 -10 -10 -------- Run | Scr Mat Min Total Allies . | . . . Largest Group . | . . . Highest-Rated Group . | . . . Highest-Rated Ally . | . . . Total Orders . | . . . Ally Attacks . | . . . Total Damage . | . . . Kills . | . . . Allies Corrupted . | . . . Allies Melted . | . . . Intel | -11 -10 -10 ------- Run | Scr Mat Min Robot Analysis Total . | . . . Derelict Logs Recovered 2 | . . 2 Drone Launches . | . . . Drone Recoveries . | . . . Exploration | -11 -10 -10 ------------- Run | Scr Mat Min Turns Passed 1368 | 71 820 477 Spaces Moved 695 | 39 427 229 Core 3 | 3 . . Treads 692 | 36 427 229 Legs . | . . . Wheels . | . . . Hover . | . . . Flight . | . . . Fastest Speed 50 | 50 160 160 Average Speed 159 | 151 160 160 Slowest Speed 180 | 160 160 180 Overloaded Moves . | . . . Propulsion Burnouts . | . . . Robots Hopped . | . . . Cave-ins Triggered . | . . . Exploration Rate (%) 46 | 4 73 61 Regions Visited 2 Branch Regions 1 Pre-discovered Areas 1 | . . 1 Known Exits Taken . | . . . Unknown Exits Taken 2 | 1 1 . Scrap Searched 2 | . . 2 Spaces Dug . | . . . Terrain Destroyed 86 | . 9 77 Melee . | . . . Projectile . | . . . AOE 86 | . 9 77 Terrain Rammed . | . . . Walls Destroyed . | . . . Machines Disabled . | . . . Actions | -11 -10 -10 --------- Run | Scr Mat Min Total 846 | 48 505 293 Wait 22 | . 14 8 Move 693 | 38 426 229 Hop . | . . . Pick Up 26 | 4 17 5 Fast Attach 8 | 6 2 . Attach 11 | . 3 8 Detach 1 | . 1 . Swap 8 | . 4 4 Drop 8 | . 5 3 Fire 67 | . 32 35 Melee 1 | . . 1 Ram . | . . . Kick . | . . . Crush 1 | . 1 . Escape Stasis . | . . . Rewire . | . . . Trap . | . . . Miscellaneous . | . . . Route ------- -11/Scrapyard -10/Materials (discovered 3 exits: [*Mat x2] / [*Min]) -10/Mines (discovered 2 exits: [*Mat x2]) History --------- Turn | Location | Event 9 | -11/Scrapyard | Discovered new exit (range 15) 72 | -11/Scrapyard | Entered Materials 155 | -10/Materials | Discovered new exit (range 14) 309 | -10/Materials | Discovered new exit (range 6) 317 | -10/Materials | Build established: Mutant 682 | -10/Materials | Discovered new exit (range 14) 892 | -10/Materials | Entered Mines 954 | -10/Mines | Discovered new exit (range 15) 1012 | -10/Mines | Learned Materials terminal intel 1043 | -10/Mines | Discovered new exit (range 8) 1149 | -10/Mines | Assembled infested the area 1152 | -10/Mines | Learned location of Mines (-8) 1154 | -10/Mines | Assisted by a Guerilla fighting off Assembled 1183 | -10/Mines | Core integrity fell below 50% 1211 | -10/Mines | Destroyed 16 combat bots 1222 | -10/Mines | Lost 5 parts (1p3n1w) 1359 | -10/Mines | Core integrity fell below 20% 1369 | -10/Mines | Destroyed by D-53 Grenadier with Mini Grenade Launcher Last Messages --------------- 01239_ U-05 Engineer lays Concrete. 01242_ K-01 Serf collects debris. 01242_ U-05 Engineer lays Concrete. 01263_ K-01 Serf collects debris. 01300_ S-10 Pest destroyed. 01305_ Acquired 19 matter. 01310_ Acquired Lgt. Assault Rifle. 01319_ Acquired 15 matter. 01322_ Acquired Lgt. Ion Engine. 01329_ Acquired 16 matter. 01334_ Acquired 19 matter. 01354_ Sml. Laser destroyed. 01354_ Lgt. Assault Rifle destroyed. 01358_ Lgt. Treads destroyed. 01358_ Lgt. Ion Engine destroyed. 01358_ D-53 Grenadier destroyed. 01362_ The unstable cave ceiling collapses. 01364_ Lgt. Treads destroyed. 01364_ Laser Drill disabled. 01367_ The unstable cave ceiling collapses. Map ----- +----------------------------------------------------+ | ????????????## #??### #????????? | | ??????????### ### #????????? | | ?????????## #????????? | | ?????????# ##???????? | | ??????????# #???????? | | ??????????###### #???????? | | ???????????????## ##??????? | | ????????????????## ####???? | | ????????????????## ##??? | | ????????????????# " #??? | | ????????????????# #??? | | ????????????##### ##??# | | ????????????# ##?? # | | ????????????# ### ##?? # | | ????????????# #?## #?? # | | ???##?####### #??## #?? # | | ???# # #???## ### ##? # | | ???# # #????####### # ## # | | ???# """ # #????????## # # | | ???# """ # #???????## # # | | ???# " # ####??? ## # ## | | ???# = # ### ## # # #? | | ???# " # # ## ## ## ### | | ???# "" #?# !! | | ???# #?# ! | | ???# @ #?### # ###!### | | ???# #???# =% #? | | ???###### #???###* ### #? | | ????????## ##?????# #? # | | ?????????## # #d #??????# | | ??????????# ##?????? # | | ??????????## ????? ###### | | ???????????### # ??? #???### | | ?????????????#### #### ^ ^ ##???# | | ????????????????? #??? # ?????# # | | ????????????????? #???? # ??#### # | | ????????????????? #????? ^ # ??# # | | ?????????????????##?????? ## ??# #### | | ?????????????????????????? ?? ??# #??? | | ????????????????????????#####???# #??? | | ???????????????????????## ##?# #??? | | ?????????????????????### ### #??? | | ?????????????????????# ## #### | | ????????????????????# < | | ?????????????????????# | | ?????????????????????## #### | | ??????????????????????## ###??# | | ???????????????????????## #?????## | | ????????????????????????###???????## | | ???????????????????????????????????# | +----------------------------------------------------+ Best States ------------- Heat Dissipation 39 Energy Generation 10 Energy Capacity 125 Matter Stores 300 Matter Capacity 300 Sight Range 16 Terrain Scan Density 10 Evasion (%) 40 Recoil Reduction 2 Item Schematics ----------------- None Robot Schematics ------------------ None Fabricated ------------ Nothing Alien Tech Used ----------------- None Achievements -------------- None Challenges ------------ None Game ------ Seed DroneEnergyDerivative Manual? 0 Play Time 00:11:24 Cumulative 136.9 hours Start 2021.06.22 @ 19:25:21 End 2021.06.22 @ 19:33:38 Sessions 1 Manual Loads 0 Difficulty Rogue Special Mode None Game No. 109 Rogue 109 Adventurer 0 Explorer 0 Win Type - Total 5 Types 5/0/0/0/0/0/0/0/0 Lore% 76 Gallery% 61 Achievement% 53 Wizard Run 0 Options --------- ASCII 0 Keyboard 1 Movement Arrows Keybinds 0 Fullscreen 1 Font 18/SmallcapsGlow Map View 76x50 Tactical HUD 1 Map Filters NONE Filters NONE Steam 1 RUN: 7677f9ec-fd86-4578-ad7e-75e1d21bdf1e